fUST/lending_fUST_20250809
["ID","MTS","AMOUNT","RATE_DAILY","PERIOD"]
[378149780,1754749848612,-460.0,0.00023013,2]
[378149782,1754749848621,-460.0,0.00023013,2]
[378149784,1754749848630,-1809.31,0.00023013,2]
[378149786,1754749848641,-1460.46,0.00023013,2]
[378149788,1754749848651,-460.0,0.00023013,2]
[378149790,1754749848662,-224.37148239,0.00023013,2]
[378149792,1754749848671,-460.0,0.00023013,2]
[378149794,1754749848681,-460.0,0.00023013,2]
[378149796,1754749848691,-1265.82,0.00023013,2]
[378149798,1754749848700,-476.92,0.00023013,2]
[378149800,1754749848715,-4072.84,0.00023013,2]
[378149802,1754749848734,-460.0,0.00023013,2]
[378149804,1754749848744,-460.0,0.00023013,2]
[378149806,1754749848754,-460.0,0.00023013,2]
[378149808,1754749848764,-460.0,0.00023013,2]
[378149810,1754749848773,-460.0,0.00023013,2]
[378149812,1754749848783,-460.0,0.00023013,2]
[378149814,1754749848793,-556.77,0.00023013,2]
[378149816,1754749848802,-460.0,0.00023013,2]
[378149818,1754749848812,-460.0,0.00023013,2]
[378149820,1754749848821,-460.0,0.00023013,2]
[378149822,1754749848830,-460.0,0.00023013,2]
[378149824,1754749848840,-775.04,0.00023013,2]
[378149826,1754749848849,-460.0,0.00023013,2]
[378149828,1754749848859,-460.0,0.00023013,2]
[378149830,1754749848874,-1375.6,0.00023013,2]
[378149832,1754749848890,-464.83,0.00023013,2]
[378149834,1754749848900,-1057.86,0.00023013,2]
[378149836,1754749848910,-697.23,0.00023013,2]
[378149838,1754749848920,-460.0,0.00023013,2]
[378149840,1754749848929,-460.0,0.00023013,2]
[378149842,1754749848940,-460.0,0.00023013,2]
[378149844,1754749848950,-460.0,0.00023013,2]
[378149846,1754749848959,-460.0,0.00023013,2]
[378149848,1754749848969,-460.0,0.00023013,2]
[378149850,1754749848979,-1216.53,0.00023013,2]
[378149852,1754749848988,-594.46,0.00023013,2]
[378149854,1754749848998,-535.19,0.00023013,2]
[378149856,1754749849008,-460.0,0.00023013,2]
[378149858,1754749849017,-1300.26,0.00023013,2]
[378149860,1754749849027,-1109.08,0.00023013,2]
[378149862,1754749849036,-460.0,0.00023013,2]
[378149864,1754749849047,-510.58651523,0.00023013,2]
[378149866,1754749849056,-460.0,0.00023013,2]
[378149868,1754749849067,-847.56,0.00023013,2]
[378149870,1754749849078,-2267.02,0.00023013,2]
[378149872,1754749849088,-584.56,0.00023013,2]
[378149874,1754749849097,-168.0,0.00023014,7]
[378149876,1754749849107,-1506.0,0.0002302,2]
[378149878,1754749849117,-500.0,0.00023021,2]
[378149880,1754749849127,-1000.0,0.00023021,2]
[378149882,1754749849137,-1000.0,0.00023021,2]
[378149884,1754749849147,-312.0,0.00023021,2]
[378149886,1754749849156,-1506.0,0.00023073,2]
[378149888,1754749849166,-1506.0,0.00023095,2]
[378149890,1754749849176,-500.0,0.00023186,2]
[378149892,1754749849185,-151.0,0.00023287,7]
[378149894,1754749849195,-151.0,0.00023287,7]
[378149896,1754749849204,-460.0,0.00023287,2]
[378149897,1754749849213,-460.0,0.00023287,2]
[378149900,1754749849223,-460.0,0.00023287,2]
[378149901,1754749849232,-460.0,0.00023287,2]
[378149903,1754749849242,-580.24,0.00023287,2]
[378149905,1754749849252,-460.0,0.00023287,2]
[378149907,1754749849261,-460.0,0.00023287,2]
[378149909,1754749849271,-460.0,0.00023287,2]
[378149911,1754749849280,-460.0,0.00023287,2]
[378149913,1754749849289,-460.0,0.00023287,2]
[378149915,1754749849300,-598.0,0.00023287,2]
[378149917,1754749849315,-460.0,0.00023287,2]
[378149919,1754749849324,-460.0,0.00023287,2]
[378149921,1754749849333,-460.0,0.00023287,2]
[378149923,1754749849342,-460.0,0.00023287,2]
[378149924,1754749849353,-460.0,0.00023287,2]
[378149926,1754749849362,-460.0,0.00023287,2]
[378149928,1754749849372,-582.22,0.00023287,2]
[378149931,1754749849384,-460.0,0.00023287,2]
[378149932,1754749849394,-460.0,0.00023287,2]
[378149934,1754749849403,-460.0,0.00023287,2]
[378149936,1754749849413,-460.0,0.00023287,2]
[378149938,1754749849422,-580.16894444,0.00023287,2]
[378149940,1754749849431,-460.0,0.00023287,2]
[378149942,1754749849440,-702.88,0.00023287,2]
[378149944,1754749849450,-151.0,0.00023287,7]
[378149946,1754749849459,-747.44,0.00023287,2]
[378149948,1754749849468,-460.0,0.00023287,2]
[378149950,1754749849478,-1486.02,0.00023287,2]
[378149952,1754749849487,-460.0,0.00023287,2]
[378149954,1754749849496,-616.0,0.00023287,2]
[378149956,1754749849505,-326.77805351,0.00023287,2]
[378149958,1754749849515,-776.49,0.00023287,2]
[378149960,1754749849524,-654.85,0.00023287,2]
[378149962,1754749849533,-602.34,0.00023287,2]
[378149964,1754749849543,-460.0,0.00023287,2]
[378149965,1754749849552,-460.0,0.00023287,2]
[378149967,1754749849561,-707.22,0.00023287,2]
[378149969,1754749849571,-1415.06,0.00023287,2]
[378149983,1754749849692,-460.0,0.00023287,2]
[378149985,1754749849703,-981.01,0.00023287,2]
[378149987,1754749849712,-333.04850002,0.00023287,2]
[378149989,1754749849722,-460.0,0.00023287,2]
[378149991,1754749849731,-460.0,0.00023287,2]
[378149993,1754749849741,-1809.31,0.00023287,2]
[378149995,1754749849750,-1460.46,0.00023287,2]
[378149997,1754749849760,-460.0,0.00023287,2]
[378149999,1754749849770,-460.0,0.00023287,2]
[378150001,1754749849779,-460.0,0.00023287,2]
[378150003,1754749849789,-1265.82,0.00023287,2]
[378150005,1754749849799,-476.92,0.00023287,2]
[378150007,1754749849809,-4072.84,0.00023287,2]
[378150009,1754749849818,-360.69061479,0.00023287,2]
[378150011,1754749849827,-460.0,0.00023287,2]
[378150013,1754749849836,-460.0,0.00023287,2]
[378150014,1754749849845,-460.0,0.00023287,2]
[378150016,1754749849854,-460.0,0.00023287,2]
[378150018,1754749849863,-460.0,0.00023287,2]
[378150020,1754749849873,-556.77,0.00023287,2]
[378150022,1754749849882,-460.0,0.00023287,2]
[378150024,1754749849892,-460.0,0.00023287,2]
[378150026,1754749849902,-460.0,0.00023287,2]
[378150028,1754749849911,-460.0,0.00023287,2]
[378150030,1754749849921,-775.04,0.00023287,2]
[378150032,1754749849932,-460.0,0.00023287,2]
[378150034,1754749849941,-1375.6,0.00023287,2]
[378150036,1754749849951,-464.83,0.00023287,2]
[378150038,1754749849960,-1057.86,0.00023287,2]
[378150040,1754749849970,-697.23,0.00023287,2]
[378150042,1754749849980,-460.0,0.00023287,2]
[378150044,1754749849989,-460.0,0.00023287,2]
[378150046,1754749849998,-460.0,0.00023287,2]
[378150048,1754749850008,-460.0,0.00023287,2]
[378150050,1754749850017,-460.0,0.00023287,2]
[378150052,1754749850026,-460.0,0.00023287,2]
[378150054,1754749850035,-1216.53,0.00023287,2]
[378150056,1754749850045,-594.46,0.00023287,2]
[378150057,1754749850054,-460.0,0.00023287,2]
[378150058,1754749850063,-1300.26,0.00023287,2]
[378150059,1754749850073,-1109.08,0.00023287,2]
[378150060,1754749850082,-460.0,0.00023287,2]
[378150061,1754749850091,-460.0,0.00023287,2]
[378150062,1754749850101,-847.56,0.00023287,2]
[378150063,1754749850110,-2267.02,0.00023287,2]
[378150064,1754749850120,-584.56,0.00023287,2]
[378150065,1754749850129,-151.0,0.00023287,7]
[378150066,1754749850138,-500.0,0.00023288,2]
[378150067,1754749850148,-160.0,0.00023358,2]
[378150068,1754749850157,-1506.0,0.00023359,2]
[378150069,1754749850166,-908.88071238,0.000234,2]
[378150070,1754749850175,-1715.0,0.00023408,2]
[378150071,1754749850185,-151.0,0.00023409,7]
[378150072,1754749850194,-328.251835,0.00023409,7]
[378150073,1754749850204,-328.251835,0.00023409,7]
[378150074,1754749850214,-457.995757,0.00023409,7]
[378150075,1754749850223,-457.995757,0.00023409,7]
[378150076,1754749850232,-151.0,0.00023409,7]
[378150077,1754749850242,-151.0,0.00023409,7]
[378150078,1754749850251,-3323.35302828,0.00023409,2]
[378150079,1754749850261,-329.69635784,0.00023446,2]
[378150080,1754749850270,-600.0,0.00023473,2]
[378150081,1754749850280,-420.0,0.00023495,2]
[378150082,1754749850289,-91640.5,0.000235,7]
[378150083,1754749850299,-151.0,0.000235,7]
[378150084,1754749850312,-151.0,0.000235,7]
[378150085,1754749850321,-201.490995,0.000235,7]
[378150086,1754749850331,-201.490995,0.000235,7]
[378150088,1754749850341,-151.0,0.000235,7]
[378150089,1754749850350,-151.0,0.000235,7]
[378150090,1754749850360,-461.55179734,0.000235,7]
[378150091,1754749850371,-12666.14847857,0.000235,7]
[378150093,1754749850381,-151.0,0.000235,7]
[378150095,1754749850391,-151.0,0.000235,7]
[378150097,1754749850401,-151.0,0.000235,7]
[378150099,1754749850411,-151.0,0.000235,7]
[378150101,1754749850420,-151.0,0.000235,7]
[378150103,1754749850429,-215.40758176,0.000235,7]
[378150105,1754749850438,-151.0,0.000235,7]
[378150107,1754749850448,-151.0,0.000235,7]
[378150109,1754749850458,-151.0,0.000235,7]
[378150111,1754749850467,-1715.0,0.00023504,2]
[378150113,1754749850477,-151.0,0.00023561,7]
[378150115,1754749850487,-460.0,0.00023561,2]
[378150117,1754749850497,-460.0,0.00023561,2]
[378150119,1754749850506,-460.0,0.00023561,2]
[378150121,1754749850516,-151.0,0.00023561,7]
[378150123,1754749850525,-460.0,0.00023561,2]
[378150125,1754749850535,-580.24,0.00023561,2]
[378150127,1754749850544,-460.0,0.00023561,2]
[378150129,1754749850553,-460.0,0.00023561,2]
[378150131,1754749850562,-460.0,0.00023561,2]
[378150133,1754749850572,-460.0,0.00023561,2]
[378150135,1754749850581,-460.0,0.00023561,2]
[378150137,1754749850591,-598.0,0.00023561,2]
[378150139,1754749850600,-460.0,0.00023561,2]
[378150141,1754749850609,-460.0,0.00023561,2]
[378150143,1754749850618,-460.0,0.00023561,2]
[378150145,1754749850628,-460.0,0.00023561,2]
[378150147,1754749850637,-582.22,0.00023561,2]
[378150149,1754749850646,-460.0,0.00023561,2]
[378150151,1754749850655,-460.0,0.00023561,2]
[378150153,1754749850664,-509.95,0.00023561,2]
[378150155,1754749850674,-702.88,0.00023561,2]
[378150157,1754749850683,-747.44,0.00023561,2]
[378150159,1754749850693,-460.0,0.00023561,2]
[378150161,1754749850702,-1486.02,0.00023561,2]
[378150163,1754749850711,-460.0,0.00023561,2]
[378150165,1754749850720,-616.0,0.00023561,2]
[378150167,1754749850730,-776.49,0.00023561,2]
[378150169,1754749850738,-654.85,0.00023561,2]
[378150171,1754749850748,-602.34,0.00023561,2]
[378150173,1754749850757,-460.0,0.00023561,2]
[378150175,1754749850766,-460.0,0.00023561,2]
[378150176,1754749850775,-707.22,0.00023561,2]
[378150178,1754749850784,-1415.06,0.00023561,2]
[378150181,1754749850794,-460.0,0.00023561,2]
[378150182,1754749850803,-981.01,0.00023561,2]
[378150184,1754749850812,-460.0,0.00023561,2]
[378150186,1754749850821,-460.0,0.00023561,2]
[378150188,1754749850831,-1809.31,0.00023561,2]
[378150190,1754749850840,-1460.46,0.00023561,2]
[378150193,1754749850850,-460.0,0.00023561,2]
[378150194,1754749850859,-460.0,0.00023561,2]
[378150196,1754749850868,-479.26074784,0.00023561,2]
[378150199,1754749850878,-1265.82,0.00023561,2]
[378150201,1754749850887,-476.92,0.00023561,2]
[378150202,1754749850897,-4072.84,0.00023561,2]
[378150204,1754749850907,-460.0,0.00023561,2]
[378150206,1754749850916,-460.0,0.00023561,2]
[378150209,1754749850925,-460.0,0.00023561,2]
[378150210,1754749850934,-571.80308689,0.00023561,2]
[378150212,1754749850943,-460.0,0.00023561,2]
[378150214,1754749850952,-556.77,0.00023561,2]
[378150216,1754749850962,-460.0,0.00023561,2]
[378150218,1754749850971,-512.72277336,0.00023561,2]
[378150220,1754749850980,-157.4,0.00023561,2]
[378150222,1754749850990,-460.0,0.00023561,2]
[378150224,1754749851000,-775.04,0.00023561,2]
[378150226,1754749851009,-1375.6,0.00023561,2]
[378150228,1754749851019,-464.83,0.00023561,2]
[378150230,1754749851028,-1057.86,0.00023561,2]
[378150232,1754749851038,-697.23,0.00023561,2]
[378150234,1754749851047,-460.0,0.00023561,2]
[378150237,1754749851057,-460.0,0.00023561,2]
[378150239,1754749851066,-460.0,0.00023561,2]
[378150241,1754749851075,-460.0,0.00023561,2]
[378150243,1754749851086,-243.38921214,0.00023561,2]
[378150244,1754749851095,-460.0,0.00023561,2]
[378150246,1754749851104,-1216.53,0.00023561,2]
[378150249,1754749851113,-594.46,0.00023561,2]
[378150251,1754749851123,-460.0,0.00023561,2]
[378150252,1754749851132,-1300.26,0.00023561,2]
[378150254,1754749851142,-1109.08,0.00023561,2]
[378150257,1754749851151,-460.0,0.00023561,2]
[378150259,1754749851161,-460.0,0.00023561,2]
[378150261,1754749851171,-847.56,0.00023561,2]
[378150263,1754749851180,-2267.02,0.00023561,2]
[378150264,1754749851189,-584.56,0.00023561,2]
[378150266,1754749851199,-1500.0,0.00023568,2]
[378150268,1754749851208,-1500.0,0.00023568,2]
[378150270,1754749851217,-837.0,0.00023594,2]
[378150272,1754749851226,-1680.0,0.00023606,2]
[378150274,1754749851235,-351.07814127,0.00023835,2]
[378150276,1754749851245,-460.0,0.00023835,2]
[378150278,1754749851254,-460.0,0.00023835,2]
[378150280,1754749851264,-151.0,0.00023835,7]
[378150282,1754749851273,-460.0,0.00023835,2]
[378150285,1754749851282,-580.24,0.00023835,2]
[378150287,1754749851292,-460.0,0.00023835,2]
[378150288,1754749851302,-460.0,0.00023835,2]
[378150291,1754749851314,-460.0,0.00023835,2]
[378150292,1754749851323,-460.0,0.00023835,2]
[378150295,1754749851333,-460.0,0.00023835,2]
[378150296,1754749851343,-598.0,0.00023835,2]
[378150298,1754749851352,-460.0,0.00023835,2]
[378150300,1754749851361,-460.0,0.00023835,2]
[378150302,1754749851370,-186.7298308,0.00023835,2]
[378150305,1754749851382,-497.4432277,0.00023835,2]
[378150307,1754749851393,-582.22,0.00023835,2]
[378150309,1754749851403,-460.0,0.00023835,2]
[378150310,1754749851412,-460.0,0.00023835,2]
[378150312,1754749851422,-702.88,0.00023835,2]
[378150315,1754749851432,-151.0,0.00023835,7]
[378150317,1754749851441,-747.44,0.00023835,2]
[378150318,1754749851451,-460.0,0.00023835,2]
[378150320,1754749851460,-1486.02,0.00023835,2]
[378150322,1754749851470,-460.0,0.00023835,2]
[378150324,1754749851480,-616.0,0.00023835,2]
[378150326,1754749851490,-776.49,0.00023835,2]
[378150329,1754749851500,-654.85,0.00023835,2]
[378150331,1754749851510,-602.34,0.00023835,2]
[378150332,1754749851519,-460.0,0.00023835,2]
[378150335,1754749851529,-707.22,0.00023835,2]
[378150337,1754749851538,-1415.06,0.00023835,2]
[378150339,1754749851548,-353.59519756,0.00023835,2]
[378150357,1754749851712,-106.40480244,0.00023835,2]
[378150359,1754749851722,-981.01,0.00023835,2]
[378150361,1754749851731,-460.0,0.00023835,2]
[378150363,1754749851740,-231.59178084,0.00023835,2]
[378150365,1754749851750,-288.856446,0.00023835,7]
[378150367,1754749851759,-1809.31,0.00023835,2]
[378150369,1754749851769,-1460.46,0.00023835,2]
[378150371,1754749851778,-288.856446,0.00023835,7]
[378150373,1754749851787,-460.0,0.00023835,2]
[378150375,1754749851797,-460.0,0.00023835,2]
[378150377,1754749851807,-1265.82,0.00023835,2]
[378150379,1754749851816,-476.92,0.00023835,2]
[378150381,1754749851825,-4072.84,0.00023835,2]
[378150383,1754749851835,-460.0,0.00023835,2]
[378150385,1754749851844,-460.0,0.00023835,2]
[378150387,1754749851854,-460.0,0.00023835,2]
[378150389,1754749851863,-556.77,0.00023835,2]
[378150391,1754749851872,-476.49252751,0.00023835,2]
[378150393,1754749851882,-460.0,0.00023835,2]
[378150395,1754749851891,-775.04,0.00023835,2]
[378150397,1754749851900,-1375.6,0.00023835,2]
[378150399,1754749851910,-464.83,0.00023835,2]
[378150401,1754749851919,-1057.86,0.00023835,2]
[378150403,1754749851929,-697.23,0.00023835,2]
[378150405,1754749851938,-460.0,0.00023835,2]
[378150407,1754749851947,-460.0,0.00023835,2]
[378150409,1754749851956,-463.04,0.00023835,2]
[378150411,1754749851965,-460.0,0.00023835,2]
[378150413,1754749851974,-460.0,0.00023835,2]
[378150426,1754749851983,-1216.53,0.00023835,2]
[378150429,1754749852104,-594.46,0.00023835,2]
[378150431,1754749852113,-1300.26,0.00023835,2]
[378150433,1754749852122,-460.0,0.00023835,2]
[378150435,1754749852131,-1109.08,0.00023835,2]
[378150437,1754749852141,-460.0,0.00023835,2]
[378150439,1754749852149,-460.0,0.00023835,2]
[378150441,1754749852159,-847.56,0.00023835,2]
[378150442,1754749852169,-2267.02,0.00023835,2]
[378150444,1754749852178,-584.56,0.00023835,2]
[378150446,1754749852187,-151.0,0.00023835,7]
[378150449,1754749852197,-260.0,0.00023906,2]
[378150450,1754749852207,-150.0,0.00023933,2]
[378150453,1754749852216,-50000.0,0.00024,7]
[378150454,1754749852225,-151.0,0.00024,7]
[378150457,1754749852235,-151.0,0.00024,7]
[378150458,1754749852244,-231.92402426,0.00024,7]
[378150461,1754749852254,-151.0,0.00024,7]
[378150462,1754749852264,-216.61183532,0.00024,7]
[378150464,1754749852273,-160.0,0.00024,7]
[378150466,1754749852283,-151.0,0.00024,7]
[378150468,1754749852292,-312.16666667,0.00024,7]
[378150471,1754749852303,-160.0,0.00024,7]
[378150473,1754749852315,-527.77735381,0.00024,7]
[378150474,1754749852325,-842.95011917,0.00024,7]
[378150476,1754749852334,-160.0,0.00024,7]
[378150479,1754749852344,-160.0,0.00024,7]
[378150480,1754749852354,-1200.0,0.00024021,2]
[378150482,1754749852363,-168.0,0.00024025,2]
[378150484,1754749852373,-154.3353,0.00024038,3]
[378150486,1754749852383,-1715.0,0.00024059,2]
[378150489,1754749852394,-155.416666,0.00024059,7]
[378150490,1754749852403,-460.0,0.00024109,2]
[378150493,1754749852412,-460.0,0.00024109,2]
[378150495,1754749852422,-151.0,0.00024109,7]
[378150496,1754749852431,-580.24,0.00024109,2]
[378150498,1754749852441,-460.0,0.00024109,2]
[378150501,1754749852450,-460.0,0.00024109,2]
[378150503,1754749852459,-460.0,0.00024109,2]
[378150505,1754749852469,-491.52373532,0.00024109,2]
[378150506,1754749852478,-460.0,0.00024109,2]
[378150509,1754749852487,-598.0,0.00024109,2]
[378150510,1754749852496,-460.0,0.00024109,2]
[378150512,1754749852505,-460.0,0.00024109,2]
[378150514,1754749852515,-582.22,0.00024109,2]
[378150516,1754749852524,-201.490995,0.00024109,7]
[378150518,1754749852532,-201.490995,0.00024109,7]
[378150520,1754749852541,-151.0,0.00024109,7]
[378150522,1754749852550,-518.50656672,0.00024109,2]
[378150524,1754749852559,-460.0,0.00024109,2]
[378150526,1754749852568,-702.88,0.00024109,2]
[378150528,1754749852578,-747.44,0.00024109,2]
[378150530,1754749852587,-460.0,0.00024109,2]
[378150532,1754749852596,-1486.02,0.00024109,2]
[378150534,1754749852605,-460.0,0.00024109,2]
[378150536,1754749852614,-616.0,0.00024109,2]
[378150538,1754749852624,-776.49,0.00024109,2]
[378150540,1754749852633,-654.85,0.00024109,2]
[378150542,1754749852642,-602.34,0.00024109,2]
[378150544,1754749852651,-460.0,0.00024109,2]
[378150546,1754749852660,-707.22,0.00024109,2]
[378150547,1754749852669,-1415.06,0.00024109,2]
[378150548,1754749852679,-460.0,0.00024109,2]
[378150549,1754749852688,-981.01,0.00024109,2]
[378150550,1754749852697,-460.0,0.00024109,2]
[378150551,1754749852707,-1809.31,0.00024109,2]
[378150552,1754749852718,-1460.46,0.00024109,2]
[378150553,1754749852727,-460.0,0.00024109,2]
[378150555,1754749852737,-460.0,0.00024109,2]
[378150557,1754749852746,-1265.82,0.00024109,2]
[378150559,1754749852756,-476.92,0.00024109,2]
[378150561,1754749852765,-4072.84,0.00024109,2]
[378150564,1754749852777,-460.0,0.00024109,2]
[378150565,1754749852786,-460.0,0.00024109,2]
[378150568,1754749852796,-487.13639143,0.00024109,2]
[378150570,1754749852805,-556.77,0.00024109,2]
[378150572,1754749852815,-460.0,0.00024109,2]
[378150574,1754749852824,-775.04,0.00024109,2]
[378150576,1754749852833,-1375.6,0.00024109,2]
[378150577,1754749852842,-464.83,0.00024109,2]
[378150580,1754749852852,-1057.86,0.00024109,2]
[378150582,1754749852861,-697.23,0.00024109,2]
[378150584,1754749852871,-460.0,0.00024109,2]
[378150586,1754749852880,-460.0,0.00024109,2]
[378150587,1754749852889,-460.0,0.00024109,2]
[378150590,1754749852899,-594.46,0.00024109,2]
[378150592,1754749852908,-1216.53,0.00024109,2]
[378150594,1754749852917,-1300.26,0.00024109,2]
[378150595,1754749852926,-341.46761962,0.00024109,2]
[378150598,1754749852935,-1109.08,0.00024109,2]
[378150599,1754749852945,-460.0,0.00024109,2]
[378150601,1754749852954,-460.0,0.00024109,2]
[378150604,1754749852964,-847.56,0.00024109,2]
[378150606,1754749852972,-2267.02,0.00024109,2]
[378150608,1754749852982,-584.56,0.00024109,2]
[378150610,1754749852991,-2044.42475222,0.00024116,2]
[378150612,1754749853001,-2000.0,0.00024116,2]
[378150614,1754749853011,-5000.0,0.00024164,2]
[378150616,1754749853020,-200.0,0.00024183,15]
[378150618,1754749853029,-200.0,0.00024183,15]
[378150620,1754749853039,-200.0,0.00024183,15]
[378150622,1754749853048,-200.0,0.00024183,15]
[378150624,1754749853057,-200.0,0.00024183,15]
[378150626,1754749853066,-200.0,0.00024183,15]
[378150628,1754749853074,-200.0,0.00024183,15]
[378150630,1754749853084,-3000.0,0.00024188,3]
[378150632,1754749853092,-254.561,0.00024239,6]
[378150634,1754749853102,-168.0,0.00024278,2]
[378150636,1754749853110,-151.0,0.00024287,7]
[378150638,1754749853120,-209.833688,0.00024287,7]
[378150640,1754749853129,-209.833688,0.00024287,7]
[378150642,1754749853139,-381.209924,0.00024287,7]
[378150644,1754749853149,-381.209924,0.00024287,7]
[378150646,1754749853158,-5000.0,0.00024296,3]
[378150648,1754749853167,-1715.0,0.00024335,2]
[378150650,1754749853176,-408.0,0.00024338,2]
[378150652,1754749853185,-415.728,0.00024338,2]
[378150654,1754749853194,-151.0,0.00024338,7]
[378150656,1754749853203,-151.0,0.00024338,7]
[378150658,1754749853212,-151.0,0.00024383,7]
[378150660,1754749853222,-151.0,0.00024383,7]
[378150662,1754749853231,-460.0,0.00024383,2]
[378150664,1754749853240,-460.0,0.00024383,2]
[378150666,1754749853249,-580.24,0.00024383,2]
[378150668,1754749853258,-460.0,0.00024383,2]
[378150670,1754749853267,-460.0,0.00024383,2]
[378150672,1754749853276,-460.0,0.00024383,2]
[378150674,1754749853285,-569.08353206,0.00024383,2]
[378150676,1754749853295,-598.0,0.00024383,2]
[378150678,1754749853305,-460.0,0.00024383,2]
[378150680,1754749853315,-460.0,0.00024383,2]
[378150681,1754749853324,-582.22,0.00024383,2]
[378150684,1754749853334,-548.74238082,0.00024383,2]
[378150685,1754749853344,-702.88,0.00024383,2]
[378150688,1754749853354,-747.44,0.00024383,2]
[378150690,1754749853363,-460.0,0.00024383,2]
[378150692,1754749853372,-1486.02,0.00024383,2]
[378150694,1754749853382,-460.0,0.00024383,2]
[378150696,1754749853392,-616.0,0.00024383,2]
[378150698,1754749853401,-776.49,0.00024383,2]
[378150700,1754749853410,-654.85,0.00024383,2]
[378150701,1754749853419,-602.34,0.00024383,2]
[378150704,1754749853428,-707.22,0.00024383,2]
[378150706,1754749853438,-1415.06,0.00024383,2]
[378150708,1754749853447,-460.0,0.00024383,2]
[378150710,1754749853457,-981.01,0.00024383,2]
[378150712,1754749853466,-460.0,0.00024383,2]
[378150714,1754749853476,-1809.31,0.00024383,2]
[378150716,1754749853486,-1460.46,0.00024383,2]
[378150718,1754749853495,-460.0,0.00024383,2]
[378150720,1754749853504,-460.0,0.00024383,2]
[378150722,1754749853513,-1265.82,0.00024383,2]
[378150724,1754749853523,-476.92,0.00024383,2]
[378150726,1754749853532,-4072.84,0.00024383,2]
[378150728,1754749853541,-460.0,0.00024383,2]
[378150730,1754749853549,-460.0,0.00024383,2]
[378150732,1754749853559,-556.77,0.00024383,2]
[378150734,1754749853568,-460.0,0.00024383,2]
[378150736,1754749853577,-775.04,0.00024383,2]
[378150738,1754749853586,-1375.6,0.00024383,2]
[378150740,1754749853595,-464.83,0.00024383,2]
[378150742,1754749853604,-1057.86,0.00024383,2]
[378150744,1754749853613,-697.23,0.00024383,2]
[378150746,1754749853622,-460.0,0.00024383,2]
[378150748,1754749853631,-460.0,0.00024383,2]
[378150750,1754749853641,-460.0,0.00024383,2]
[378150752,1754749853650,-1216.53,0.00024383,2]
[378150754,1754749853659,-594.46,0.00024383,2]
[378150756,1754749853668,-1300.26,0.00024383,2]
[378150758,1754749853677,-1109.08,0.00024383,2]
[378150760,1754749853686,-460.0,0.00024383,2]
[378150762,1754749853695,-410.77880587,0.00024383,2]
[378150764,1754749853704,-847.56,0.00024383,2]
[378150766,1754749853713,-2267.02,0.00024383,2]
[378150768,1754749853722,-584.56,0.00024383,2]
[378150770,1754749853730,-325.0,0.00024429,3]
[378150771,1754749853739,-325.0,0.00024429,3]
[378150773,1754749853748,-325.0,0.00024429,3]